fUSD/lending_fUSD_20240922
["ID","MTS","AMOUNT","RATE_DAILY","PERIOD"]
[338883620,1727004632205,-150.0,0.00012753,2]
[338883621,1727004632215,-150.0,0.00012766,2]
[338883622,1727004632224,-150.0,0.00012778,2]
[338883623,1727004632233,-150.0,0.00012779,2]
[338883624,1727004632242,-3974.27577679,0.0001278,2]
[338883625,1727004632257,-4756.34817572,0.0001278,2]
[338883630,1727004638086,250.0,0.00011899,2]
[338883632,1727004638150,-345.69,0.0001278,2]
[338883633,1727004638474,-106088.6139632,0.0001278,2]
[338883634,1727004638515,-3313.291423,0.0001278,2]
[338883699,1727004640115,-41749.09028755,0.0001278,2]
[338883700,1727004640131,-150.0,0.00012781,2]
[338883701,1727004640140,-499.99,0.00012781,2]
[338883702,1727004640149,-2844.589,0.000128,2]
[338883703,1727004640159,-200.0,0.000128,4]
[338883704,1727004640169,-2500.0,0.000128,2]
[338883705,1727004640178,-502.18345047,0.00012808,2]
[338883706,1727004640188,-150.0,0.00012813,2]
[338883707,1727004640197,-150.0,0.00012824,2]
[338883708,1727004640207,-150.0,0.00012826,2]
[338883709,1727004640217,-150.0,0.00012832,2]
[338883710,1727004640226,-1500.0,0.00012859,2]
[338883711,1727004640235,-150.0,0.0001286,2]
[338883712,1727004640244,-6820.66338868,0.00012872,2]
[338883713,1727004640254,-150.0,0.00012875,2]
[338883714,1727004640264,-1000.0,0.00012877,2]
[338883715,1727004640277,-1000.0,0.00012877,2]
[338883716,1727004640286,-1000.0,0.00012877,2]
[338883717,1727004640296,-1000.0,0.00012877,2]
[338883718,1727004640305,-1000.0,0.00012877,2]
[338883719,1727004640315,-1000.0,0.00012877,2]
[338883720,1727004640324,-1000.0,0.00012877,2]
[338883721,1727004640333,-1000.0,0.00012877,2]
[338883722,1727004640343,-1000.0,0.00012877,2]
[338883724,1727004640352,-1000.0,0.00012877,2]
[338883725,1727004640362,-1000.0,0.00012877,2]
[338883726,1727004640373,-1000.0,0.00012877,2]
[338883727,1727004640382,-1000.0,0.00012877,2]
[338883728,1727004640391,-1000.0,0.00012877,2]
[338883730,1727004640400,-1000.0,0.00012877,2]
[338883732,1727004640409,-150.0,0.00012879,2]
[338883734,1727004640419,-5867.0,0.00012882,2]
[338883736,1727004640428,-150.0,0.00012882,2]
[338883738,1727004640439,-177.662,0.00012882,2]
[338883740,1727004640450,-1549.0,0.00012882,2]
[338883742,1727004640461,-625.0,0.00012882,2]
[338883744,1727004640471,-448.0,0.00012882,2]
[338883746,1727004640480,-274.835,0.00012891,2]
[338883748,1727004640489,-150.0,0.00012893,2]
[338883750,1727004640500,-150.0,0.00012894,2]
[338883752,1727004640510,-150.0,0.00012894,2]
[338883754,1727004640520,-150.0,0.00012896,2]
[338883756,1727004640529,-500.0,0.00012899,2]
[338883758,1727004640540,-76964.9529,0.000129,2]
[338883760,1727004640549,-14808.16,0.000129,2]
[338883762,1727004640558,-32130.447,0.000129,2]
[338883764,1727004640568,-64540.4438,0.000129,2]
[338883766,1727004640577,-179.6096163,0.000129,2]
[338883768,1727004640587,-164.34819358,0.000129,2]
[338883770,1727004640596,-7500.0,0.000129,2]
[338883772,1727004640605,-200.0,0.000129,4]
[338883774,1727004640618,-169.00379342,0.000129,2]
[338883776,1727004640627,-150.0,0.00012906,2]
[338883777,1727004640636,-150.0,0.00012909,2]
[338883780,1727004640646,-1500.0,0.00012914,2]
[338883781,1727004640655,-150.0,0.00012918,2]
[338883782,1727004640664,-150.0,0.0001292,2]
[338883783,1727004640673,-200.0,0.00012925,2]
[338883784,1727004640683,-150.0,0.00012937,2]
[338883785,1727004640692,-150.0,0.00012939,2]
[338883786,1727004640701,-193.66021345,0.00012951,2]
[338883787,1727004640710,-150.0,0.00012959,2]
[338883788,1727004640719,-150.0,0.0001296,2]
[338883789,1727004640729,-500.0,0.00012973,2]
[338883790,1727004640738,-150.0,0.0001298,2]
[338883791,1727004640747,-150.0,0.00012986,2]
[338883793,1727004640756,-150.0,0.00012986,2]
[338883795,1727004640766,-150.0,0.00012993,2]
[338883797,1727004640775,-2235.386568,0.00012995,2]
[338883799,1727004640785,-201.7903153,0.00012995,2]
[338883801,1727004640794,-852.4254984,0.00012995,2]
[338883802,1727004640803,-5487.9097375,0.00012995,2]
[338883803,1727004640812,-500.0,0.00012997,2]
[338883804,1727004640821,-14930.16,0.00012998,2]
[338883805,1727004640830,-500.49156819,0.00012998,2]
[338883806,1727004640839,-344.08350705,0.00012998,2]
[338883807,1727004640849,-500.0,0.00012998,2]
[338883808,1727004640858,-500.0,0.00012998,2]
[338883809,1727004640868,-15102.99,0.00012999,2]
[338883810,1727004640877,-1073.20355242,0.00012999,3]
[338883811,1727004640886,-500.0,0.00012999,2]
[338883812,1727004640895,-500.0,0.00012999,2]
[338883813,1727004640904,-500.0,0.00012999,2]
[338883814,1727004640913,-162.61591345,0.00012999,2]
[338883815,1727004640923,-808.83,0.00012999,2]
[338883816,1727004640933,-808.83,0.00012999,2]
[338883817,1727004640942,-808.83,0.00012999,2]
[338883818,1727004640952,-808.83,0.00012999,2]
[338883819,1727004640961,-808.83,0.00012999,2]
[338883820,1727004640970,-808.83,0.00012999,2]
[338883821,1727004640979,-808.83,0.00012999,2]
[338883822,1727004640987,-808.83,0.00012999,2]
[338883823,1727004640996,-808.83,0.00012999,2]
[338883824,1727004641005,-808.83,0.00012999,2]
[338883825,1727004641014,-808.83,0.00012999,2]
[338883826,1727004641023,-808.83,0.00012999,2]
[338883827,1727004641033,-808.83,0.00012999,2]
[338883828,1727004641042,-808.83,0.00012999,2]
[338883829,1727004641051,-808.83,0.00012999,2]
[338883830,1727004641060,-808.83,0.00012999,2]
[338883831,1727004641069,-808.83,0.00012999,2]
[338883832,1727004641078,-808.83,0.00012999,2]
[338883833,1727004641087,-808.83,0.00012999,2]
[338883834,1727004641097,-808.83,0.00012999,2]
[338883835,1727004641106,-808.83,0.00012999,2]
[338883836,1727004641116,-808.83,0.00012999,2]
[338883837,1727004641125,-808.83,0.00012999,2]
[338883838,1727004641134,-808.84392079,0.00012999,2]
[338883839,1727004641145,-500.0,0.00012999,2]
[338883840,1727004641155,-500.0,0.00012999,2]
[338883841,1727004641164,-500.0,0.00012999,2]
[338883842,1727004641173,-500.0,0.00012999,2]
[338883843,1727004641183,-500.0,0.00012999,2]
[338883844,1727004641192,-500.0,0.00012999,2]
[338883845,1727004641201,-500.0,0.00012999,2]
[338883846,1727004641211,-500.0,0.00012999,2]
[338883847,1727004641220,-500.0,0.00012999,2]
[338883848,1727004641230,-500.0,0.00012999,2]
[338883849,1727004641239,-186.0688276,0.00012999,2]
[338883850,1727004641249,-500.0,0.00012999,2]
[338883851,1727004641258,-500.0,0.00012999,2]
[338883852,1727004641270,-500.0,0.00012999,2]
[338883853,1727004641281,-500.0,0.00012999,2]
[338883854,1727004641290,-500.0,0.00012999,2]
[338883855,1727004641300,-500.0,0.00012999,2]
[338883856,1727004641309,-500.0,0.00012999,2]
[338883857,1727004641318,-500.0,0.00012999,2]
[338883858,1727004641327,-500.0,0.00012999,2]
[338883859,1727004641337,-500.0,0.00012999,2]
[338883860,1727004641346,-500.0,0.00012999,2]
[338883861,1727004641355,-330.399996,0.00012999,2]
[338883862,1727004641364,-500.0,0.00012999,2]
[338883863,1727004641373,-500.0,0.00012999,2]
[338883864,1727004641383,-500.0,0.00012999,2]
[338883865,1727004641392,-500.0,0.00012999,2]
[338883866,1727004641401,-500.0,0.00012999,2]
[338883867,1727004641410,-500.0,0.00012999,2]
[338883868,1727004641419,-500.0,0.00012999,2]
[338883869,1727004641428,-500.0,0.00012999,2]
[338883870,1727004641438,-500.0,0.00012999,2]
[338883871,1727004641447,-320.29268436,0.00012999,2]
[338883872,1727004641456,-1146.85,0.00012999,2]
[338883873,1727004641465,-1146.85,0.00012999,2]
[338883874,1727004641474,-1146.85,0.00012999,2]
[338883875,1727004641483,-1146.85,0.00012999,2]
[338883876,1727004641492,-1146.85,0.00012999,2]
[338883877,1727004641501,-1146.85,0.00012999,2]
[338883878,1727004641510,-1146.85,0.00012999,2]
[338883879,1727004641519,-1146.85,0.00012999,2]
[338883880,1727004641529,-1146.85,0.00012999,2]
[338883881,1727004641538,-1146.85,0.00012999,2]
[338883882,1727004641547,-1146.85,0.00012999,2]
[338883883,1727004641556,-1146.85,0.00012999,2]
[338883884,1727004641565,-1146.85,0.00012999,2]
[338883885,1727004641574,-1146.85,0.00012999,2]
[338883886,1727004641583,-1146.85,0.00012999,2]
[338883887,1727004641592,-1146.85,0.00012999,2]
[338883888,1727004641601,-1146.85,0.00012999,2]
[338883889,1727004641610,-1146.85,0.00012999,2]
[338883890,1727004641620,-1146.85,0.00012999,2]
[338883891,1727004641630,-1146.85,0.00012999,2]
[338883892,1727004641640,-1146.85,0.00012999,2]
[338883893,1727004641649,-1146.85,0.00012999,2]
[338883894,1727004641658,-1146.85,0.00012999,2]
[338883895,1727004641668,-1147.0457663,0.00012999,2]
[338883896,1727004641677,-501.2233168,0.00012999,2]
[338883897,1727004641687,-500.0,0.00012999,2]
[338883898,1727004641696,-500.0,0.00012999,2]
[338883899,1727004641705,-500.0,0.00012999,2]
[338883900,1727004641715,-500.0,0.00012999,2]
[338883901,1727004641724,-500.0,0.00012999,2]
[338883902,1727004641734,-500.0,0.00012999,2]
[338883903,1727004641743,-500.0,0.00012999,2]
[338883904,1727004641753,-500.0,0.00012999,2]
[338883905,1727004641763,-500.0,0.00012999,2]
[338883906,1727004641774,-500.0,0.00012999,2]
[338883907,1727004641783,-500.0,0.00012999,2]
[338883908,1727004641792,-500.0,0.00012999,2]
[338883909,1727004641802,-200.4555835,0.00012999,2]
[338883910,1727004641811,-502.13790788,0.00012999,2]
[338883911,1727004641822,-535.0,0.00013,2]
[338883912,1727004641833,-132746.81261144,0.00013,2]
[338883913,1727004641967,-319.38661548,0.00013,2]
[338883914,1727004641983,-1530.15088773,0.00013,2]
[338883915,1727004641994,-598.804378,0.00013,2]
[338883916,1727004643843,-1219.38966584,0.00012882,2]
[338883934,1727004645957,-42.61033416,0.00012882,2]
[338883935,1727004645967,-229.887,0.00012882,2]
[338883936,1727004645976,-418.10288784,0.00012973,2]
[338883937,1727004646221,-81.89711216,0.00012973,2]
[338883938,1727004646231,-10335.62766889,0.00013,2]
[338883939,1727004646240,-38754.04187766,0.00013,2]
[338883940,1727004646251,-149512.31507345,0.00013,2]
[338883945,1727004673885,500.0,0.00011164,2]
[338883946,1727004727339,500.0,0.00011164,2]
[338883947,1727004828074,150.0,0.00011164,2]
[338883948,1727004828099,150.0,0.00011164,2]
[338883949,1727004828124,150.0,0.00011164,2]
[338883950,1727004828148,50.0,0.00011164,2]
[338883951,1727004845889,100.0,0.00011839,2]
[338883952,1727004845915,224.18,0.00011839,2]
[338883953,1727004851466,25.82,0.00011839,2]
[338883954,1727004851489,164.37,0.00011839,2]
[338883955,1727004851979,186.14,0.00011839,2]
[338883956,1727004852186,186.14,0.00011859,2]
[338883957,1727004852387,186.14,0.00011878,2]
[338883958,1727004852606,186.14,0.00011898,2]
[338883959,1727004861541,150.0,0.00011839,2]
[338883960,1727004861563,150.0,0.00011839,2]
[338883961,1727004861584,150.0,0.00011839,2]
[338883962,1727004861606,150.0,0.00011839,2]
[338883963,1727004861626,150.0,0.00011839,2]
[338883964,1727004861648,150.0,0.00011839,2]
[338883965,1727004861671,765.19,0.00011839,2]
[338883966,1727004888373,200.0,0.00011839,2]
[338883967,1727004902606,150.0,9.908e-05,2]
[338883968,1727004902627,150.0,9.908e-05,2]
[338883969,1727004902652,189.15,9.908e-05,2]
[338883970,1727004916430,157.71,0.00011827,2]
[338883971,1727004921474,150.0,0.00011827,2]
[338883972,1727004921495,100.0,0.00011827,2]
[338883973,1727004925858,500.0,0.00011164,2]
[338883974,1727004927052,500.0,0.00011164,2]
[338883975,1727004962475,150.0,0.00010959,2]
[338883976,1727004962496,10.46,0.00010959,2]
[338883977,1727004994162,887.19,0.00011787,2]
[338883978,1727005024702,300.0,0.00011164,2]
[338883979,1727005050470,843.44,0.00011796,2]
[338883980,1727005072061,2072.83333694,0.00012,5]
[338883981,1727005168818,238.88,0.00011783,2]
[338883982,1727005170168,150.0,0.00011783,2]
[338883983,1727005170188,100.0,0.00011783,2]
[338883984,1727005243094,358.26,0.00011787,2]
[338883985,1727005243694,23900.0,0.00011779,2]
[338883986,1727005255216,150.0,0.00011788,2]
[338883987,1727005255237,150.0,0.00011788,2]
[338883988,1727005255256,59.6,0.00011788,2]
[338883989,1727005270327,250.0,0.00011805,2]
[338883990,1727005291247,1000.0,0.00011823,2]
[338883991,1727005303907,500.0,0.00011164,2]
[338883992,1727005316664,150.0,0.00011832,2]
[338883993,1727005316684,79.33,0.00011832,2]
[338883994,1727005364308,150.0,0.0001184,2]
[338883995,1727005409509,325.364013,0.00022,120]
[338883996,1727005432010,150.0,0.00011164,2]
[338883997,1727005437135,150.0,9.968e-05,2]
[338883998,1727005437156,150.0,9.968e-05,2]
[338883999,1727005437179,150.0,9.968e-05,2]
[338884000,1727005437200,29.69,9.968e-05,2]
[338884001,1727005503504,150.0,0.00011688,2]
[338884002,1727005503870,150.0,0.00011764,2]
[338884003,1727005504190,150.0,0.0001184,2]
[338884004,1727005504554,150.0,0.00011917,2]
[338884005,1727005504879,150.0,0.00011993,2]
[338884006,1727005511790,150.0,0.00011688,2]
[338884007,1727005512099,150.0,0.00011806,2]
[338884008,1727005512433,150.0,0.00011924,2]
[338884009,1727005523081,150.0,0.00011688,2]
[338884010,1727005523287,150.0,0.00011873,2]
[338884011,1727005527160,150.0,0.00011688,2]
[338884012,1727005527181,66.80795362,0.00011688,2]
[338884013,1727005536179,150.0,0.00011688,2]
[338884014,1727005536495,150.0,0.00012012,2]
[338884015,1727005574343,150.0,0.00010959,2]
[338884016,1727005574365,0.1,0.00010959,2]
[338884017,1727005578725,150.0,0.0001158,2]
[338884018,1727005578747,50.0,0.0001158,2]
[338884019,1727005600293,150.0,0.0001158,2]
[338884020,1727005600314,150.0,0.0001158,2]
[338884021,1727005600336,121.72,0.0001158,2]
[338884023,1727005711026,250.0,0.00011583,2]
[338884024,1727005742753,150.0,0.00011583,2]
[338884025,1727005742774,7.71,0.00011583,2]
[338884027,1727005765860,210.8,0.00011583,2]
[338884105,1727005803844,250.0,0.00011579,2]
[338884106,1727005806018,-150.0,0.00012032,2]
[338884107,1727005806163,-30.79,0.00012032,2]
[338884112,1727005832095,-150.0,0.00012042,2]
[338884114,1727005832104,-150.0,0.00012059,2]
[338884116,1727005832113,-150.0,0.0001207,2]
[338884118,1727005832122,-150.0,0.00012146,2]
[338884120,1727005832131,-150.0,0.0001216,2]
[338884121,1727005832140,-150.0,0.00012222,2]
[338884122,1727005832149,-479.69,0.00012232,2]
[338884123,1727005832158,-150.0,0.00012244,2]
[338884125,1727005832167,-150.0,0.00012278,2]
[338884126,1727005832176,-150.0,0.00012299,2]
[338884127,1727005832186,-150.0,0.00012337,2]
[338884128,1727005832196,-1399.85650094,0.0001235,2]
[338884129,1727005832205,-150.0,0.00012375,2]
[338884130,1727005832214,-150.0,0.00012396,2]
[338884131,1727005832223,-150.0,0.0001243,2]
[338884132,1727005832232,-224.04,0.00012445,2]
[338884133,1727005832241,-150.0,0.00012452,2]
[338884134,1727005832250,-150.0,0.00012514,2]
[338884135,1727005832259,-150.0,0.00012528,2]
[338884136,1727005832268,-500.0,0.00012534,2]
[338884137,1727005832277,-150.0,0.00012604,2]
[338884138,1727005832286,-150.0,0.00012615,2]
[338884139,1727005832295,-150.0,0.00012632,2]
[338884140,1727005832304,-300.0,0.00012658,2]
[338884141,1727005832314,-187.87349906,0.00012659,2]
[338884142,1727005832356,-286.18192272,0.00012659,2]
[338884145,1727005838648,-1583.98527822,0.00012659,2]
[338884146,1727005838657,-730.05915459,0.00012659,2]
[338884147,1727005838672,-7051.92844541,0.00012659,2]
[338884148,1727005838682,-3054.9624,0.00012659,2]
[338884150,1727005838692,-903.9786,0.00012659,2]
[338884153,1727005838703,-3831.05530459,0.00012659,2]
[338884155,1727005838715,-9628.65139541,0.00012659,2]
[338884157,1727005838726,-899.8226,0.00012659,2]
[338884159,1727005838736,-214.3081,0.00012659,2]
[338884160,1727005838746,-2500.0,0.00012659,2]
[338884162,1727005838756,-150.0,0.00012662,2]
[338884163,1727005838765,-8516.4182,0.0001268,2]
[338884166,1727005838776,-209.0038,0.0001268,2]
[338884168,1727005838787,-1720.762,0.0001268,2]
[338884170,1727005838797,-150.0,0.00012681,2]
[338884171,1727005838807,-413.4364122,0.000127,2]
[338884172,1727005838817,-353.74616634,0.000127,2]
[338884173,1727005838827,-275.33879611,0.00012727,2]
[338884174,1727005838837,-150.0,0.0001275,2]
[338884175,1727005838846,-150.0,0.00012757,2]
[338884176,1727005838856,-118042.07819624,0.00012759,2]
[338884177,1727005838871,-97233.62620376,0.00012759,2]
[338884178,1727005838880,-500.0,0.00012773,2]
[338884179,1727005838890,-39018.8152,0.00012777,2]
[338884180,1727005838899,-100000.0,0.00012777,2]
[338884181,1727005838908,-1000.0,0.00012777,2]
[338884182,1727005838916,-150.0,0.00012787,2]
[338884183,1727005838925,-150.0,0.00012789,2]
[338884184,1727005838935,-164.67482093,0.0001279,2]
[338884185,1727005838944,-153.4,0.0001279,2]
[338884186,1727005838953,-58647.25160246,0.00012799,2]
[338884187,1727005838963,-330305.0,0.000128,2]
[338884188,1727005838972,-150.0,0.00012801,2]
[338884189,1727005838982,-382.641,0.00012806,2]
[338884190,1727005838994,-171.123,0.00012806,2]
[338884191,1727005839003,-150.0,0.00012834,2]
[338884192,1727005839013,-150.0,0.00012848,2]
[338884193,1727005839022,-408.9014,0.00012849,2]
[338884194,1727005839033,-150.0,0.00012868,2]
[338884195,1727005839042,-6276.66917415,0.0001287,2]
[338884196,1727005839051,-500.0,0.00012876,2]
[338884197,1727005839062,-500.0,0.00012876,2]
[338884198,1727005839071,-209.82493842,0.00012876,2]
[338884199,1727005839081,-500.0,0.00012876,2]
[338884200,1727005839090,-500.0,0.00012876,2]
[338884201,1727005839099,-303.59,0.00012876,2]
[338884202,1727005839108,-500.0,0.00012876,2]
[338884203,1727005839117,-500.97331484,0.00012876,2]
[338884204,1727005839127,-360.31152246,0.00012876,2]
[338884205,1727005839137,-500.0,0.00012876,2]
[338884206,1727005839146,-500.0,0.00012876,2]
[338884207,1727005839155,-500.0,0.00012876,2]
[338884208,1727005839165,-500.0,0.00012876,2]
[338884209,1727005839175,-1000.0,0.00012877,2]
[338884210,1727005839186,-1000.0,0.00012877,2]
[338884211,1727005839195,-1000.0,0.00012877,2]
[338884212,1727005839205,-1000.0,0.00012877,2]
[338884213,1727005839215,-1000.0,0.00012877,2]
[338884214,1727005839226,-1000.0,0.00012877,2]
[338884215,1727005839235,-1000.0,0.00012877,2]
[338884216,1727005839245,-1000.0,0.00012877,2]
[338884217,1727005839254,-1000.0,0.00012877,2]
[338884218,1727005839264,-1000.0,0.00012877,2]
[338884219,1727005839275,-1000.0,0.00012877,2]
[338884220,1727005839286,-1000.0,0.00012877,2]
[338884221,1727005839296,-1000.0,0.00012877,2]
[338884222,1727005839305,-1000.0,0.00012877,2]
[338884223,1727005839316,-1000.0,0.00012877,2]
[338884224,1727005839325,-500.0,0.00012896,2]
[338884225,1727005839335,-540.28,0.00012899,2]
[338884226,1727005839344,-500.0,0.00012899,2]
[338884227,1727005839354,-500.0,0.00012899,2]
[338884228,1727005839364,-278.85,0.000129,2]
[338884229,1727005839373,-178.89715951,0.000129,2]
[338884230,1727005839383,-164.34819362,0.000129,2]
[338884231,1727005839393,-1647.9659,0.000129,2]
[338884232,1727005839403,-198.54068962,0.000129,2]
[338884233,1727005839413,-2818.15287756,0.000129,2]
[338884234,1727005839423,-486.1,0.000129,2]
[338884235,1727005839433,-150.0,0.0001291,2]
[338884236,1727005839443,-3731.33539879,0.00012968,10]
[338884237,1727005839452,-500.0,0.00012973,2]
[338884238,1727005839461,-500.0,0.00012973,2]
[338884239,1727005839471,-500.0,0.00012973,2]
[338884240,1727005839481,-219.97300897,0.00012986,2]
[338884241,1727005839492,-229.48651582,0.00012986,2]
[338884242,1727005839502,-245.31967874,0.00012986,2]
[338884243,1727005839511,-271.39998586,0.00012986,2]
[338884244,1727005839521,-164.67482093,0.0001299,2]
[338884245,1727005839530,-153.4,0.0001299,2]
[338884246,1727005839540,-153.4,0.0001299,2]
[338884247,1727005839550,-153.4,0.0001299,2]
[338884248,1727005839559,-153.4,0.0001299,2]
[338884249,1727005839569,-153.4,0.0001299,2]
[338884250,1727005839579,-153.4,0.0001299,2]
[338884251,1727005839589,-153.4,0.0001299,2]
[338884252,1727005839598,-153.4,0.0001299,2]
[338884253,1727005839608,-153.4,0.0001299,2]
[338884254,1727005839617,-153.4,0.0001299,2]
[338884255,1727005839627,-153.4,0.0001299,2]
[338884256,1727005839636,-153.4,0.0001299,2]
[338884257,1727005839645,-153.4,0.0001299,2]
[338884258,1727005839654,-153.4,0.0001299,2]
[338884259,1727005839664,-153.4,0.0001299,2]
[338884260,1727005839673,-500.0,0.00012997,2]
[338884261,1727005839682,-500.0,0.00012998,2]
[338884262,1727005839692,-500.0,0.00012998,2]
[338884263,1727005839701,-500.0,0.00012999,2]
[338884264,1727005839710,-500.0,0.00012999,2]
[338884265,1727005839719,-500.0,0.00012999,2]
[338884266,1727005839729,-500.0,0.00012999,2]
[338884267,1727005839738,-500.0,0.00012999,2]
[338884268,1727005839747,-500.0,0.00012999,2]
[338884269,1727005839756,-500.0,0.00012999,2]
[338884270,1727005839765,-500.0,0.00012999,2]
[338884271,1727005839774,-232.49904959,0.00012999,2]
[338884272,1727005839783,-309.0806946,0.00012999,2]
[338884273,1727005839792,-196.72,0.00012999,2]
[338884274,1727005839801,-500.0,0.00012999,2]
[338884275,1727005839811,-500.0,0.00012999,2]
[338884276,1727005839820,-500.0,0.00012999,2]
[338884277,1727005839829,-414.04,0.00012999,2]
[338884278,1727005839838,-52048.43781265,0.00013,2]
[338884279,1727005840301,-5569.33900194,0.00013,2]
[338884338,1727005843332,-169.00379342,0.000129,2]
[338884339,1727005843343,-15147.61426618,0.00013,2]
[338884340,1727005843518,-16096.28796856,0.00013,2]
[338884343,1727005843644,-1027.55882511,0.00013,2]
[338884345,1727005843657,-1399.85650094,0.00013,2]
[338884350,1727005846158,-57343.64666667,0.00013,2]
[338884353,1727005866566,-1583.98527822,0.0001235,2]
[338884354,1727005866996,-730.05915459,0.0001235,2]
[338884355,1727005891304,500.0,0.00011164,2]
[338884356,1727005982285,150.0,0.00010255,2]
[338884357,1727005982306,150.0,0.00010255,2]
[338884358,1727005982330,150.0,0.00010255,2]
[338884359,1727005982352,38.63,0.00010255,2]
[338884360,1727006001152,500.0,0.00011164,2]
[338884361,1727006015918,150.0,0.00011,2]
[338884362,1727006015939,150.0,0.00011,2]
[338884363,1727006015966,150.0,0.00011,2]
[338884364,1727006015986,150.0,0.00011,2]
[338884365,1727006016015,150.0,0.00011,2]
[338884366,1727006016038,150.0,0.00011,2]
[338884367,1727006016062,150.0,0.00011,2]
[338884368,1727006109089,150.0,0.00011164,2]
[338884369,1727006109111,261.37,0.00011164,2]
[338884370,1727006109134,88.63,0.00011164,2]
[338884371,1727006126690,61.37,0.00011946,2]
[338884372,1727006126715,149.49,0.00011946,2]
[338884373,1727006163484,200.0,0.00011951,2]
[338884374,1727006294290,218.04,0.00011945,2]
[338884376,1727006358337,250.0,0.00011928,2]
[338884377,1727006446569,800.0,0.00011912,2]
[338884378,1727006510291,372.8196,0.00011996,2]
[338884379,1727006618374,500.0,0.00011164,2]
[338884380,1727006636025,500.0,0.00011164,2]
[338884381,1727006691987,210.86,0.00011909,2]
[338884382,1727006704069,150.0,0.00011688,2]
[338884383,1727006706658,150.0,0.00011688,2]
[338884384,1727006711906,493.19,0.00010001,2]
[338884385,1727006714080,150.0,0.00011688,2]
[338884386,1727006725044,271.39998586,0.00011688,2]
[338884387,1727006797789,23900.0,0.00011827,2]
[338884393,1727006878064,303.9,0.00011896,2]
[338884394,1727006935423,250.0,0.00011896,2]
[338884422,1727007032444,-493.19,0.00012265,2]
[338884423,1727007032454,-82.83,0.00012337,2]
[338884424,1727007032469,-67.17,0.00012337,2]
[338884425,1727007032478,-1906.15279767,0.0001235,2]
[338884426,1727007032488,-500.0,0.00012534,2]
[338884427,1727007032497,-3701.6407439,0.00012559,2]
[338884428,1727007032508,-252.100228,0.00012559,2]
[338884429,1727007032594,-4039.05584188,0.00012559,2]
[338884480,1727007034453,360.0,0.00011907,2]
[338884484,1727007038617,-360.53268373,0.00012559,2]
[338884485,1727007038632,-291.17401156,0.00012559,2]
[338884486,1727007038672,-27457.19449093,0.00012559,2]
[338884487,1727007038682,-2034.9783,0.00012559,2]
[338884488,1727007038691,-1583.9853,0.00012559,2]
[338884489,1727007038701,-2500.0,0.00012559,2]
[338884490,1727007038711,-5456.53071098,0.00012559,2]
[338884491,1727007038720,-171.710405,0.00012559,2]
[338884492,1727007038730,-1000.0,0.000126,2]
[338884493,1727007038739,-3149.34,0.00012636,2]
[338884494,1727007038749,-369.0240286,0.00012644,2]
[338884495,1727007038758,-8668.4252,0.00012659,2]